[Event "38th Barczay Memorial 2019"]
[Site "Zalakaros"]
[Date "2019.05.23"]
[Round "1.2"]
[White "Kantor, Gergely"]
[Black "Csendi, Balazs"]
[Result "1-0"]
[ECO "E10"]
[WhiteElo "2516"]
[BlackElo "2005"]
[Annotator "RC"]
[PlyCount "71"]
[EventDate "2019.05.23"]
[EventType "swiss"]
[EventCountry "HUN"]
[SourceTitle "playchess.com"]
[Source "ChessBase"]
[SourceQuality "1"]
[TimeControl "40/5400+30:1800+30"]

1. d4 {[%emt 0:00:03]} e6 {[%emt 0:00:12]} 2. c4 {[%emt 0:00:12]} Nf6 {[%emt 0:00:14]} 3. Nf3 {[%emt 0:00:13]} c5 {[%emt 0:00:48]} 4. d5 {[%emt 0:00:18]} exd5 {[%emt 0:00:21]} 5. cxd5 {[%emt 0:00:07]} d6 {[%emt 0:00:18]} 6. Nc3 {[%emt 0:00:04]} a6 {[%emt 0:00:39]} 7. a4 {[%emt 0:00:36]} g6 {[%emt 0:01:35]} 8. Nd2 {[%emt 0:00:11]} Bg7 {[%emt 0:00:53]} 9. e4 {[%emt 0:00:05]} O-O {[%emt 0:01:42]} 10. Be2 {[%emt 0:00:03]} Nbd7 {[%emt 0:07:14]} 11. O-O {[%emt 0:04:44]} Ne5 {[%emt 0:08:12]} 12. f4 {[%emt 0:13:15]} Neg4 {[%emt 0:19:15]} 13. Nc4 {[%emt 0:07:50]} h5 {[%emt 0:03:04]} 14. h3 {[%emt 0:04:02]} Nh6 15. f5 {[%emt 0:12:22]} Ne8 {[%emt 0:09:47]} 16. Bf4 Kh7 {[%emt 0:07:29]} 17. Qd2 {[%emt 0:02:26]} gxf5 {[%emt 0:04:10]} 18. Bxh5 {[%emt 0:03:18]} Bd4+ {[%emt 0:02:51]} 19. Kh1 {[%emt 0:01:48]} Ng8 {[%emt 0:03:05]} 20. e5 {[%emt 0:02:29]} dxe5 {[%emt 0:01:58]} 21. Nxe5 {[%emt 0:00:42]} Nd6 {[%emt 0:00:47]} 22. Nf3 {[%emt 0:05:16]} Nf6 {[%emt 0:03:15]} 23. Ng5+ {[%emt 0:02:32]} Kg8 24. Bf3 Nh7 {[%emt 0:05:05]} 25. Rae1 {[%emt 0:08:50]} Nc4 {[%emt 0:02:18]} 26. Qc1 {[%emt 0:12:17]} Nxb2 {[%emt 0:09:43]} 27. Be2 {[%emt 0:04:21]} Bxc3 {[%emt 0:00:40]} 28. Qxc3 {[%emt 0:04:15]} Nxg5 29. Qg3 f6 {[%emt 0:01:38]} 30. h4 {[%emt 0:00:38]} Qxd5 {[%emt 0:02:33]} 31. hxg5 {[%emt 0:00:29]} Rf7 {[%emt 0:02:20]} 32. g6 {[%emt 0:04:43]} Re7 {[%emt 0:01:37]} 33. Bf3 {[%emt 0:00:52]} Qd8 {[%emt 0:00:22]} 34. Rxe7 {[%emt 0:02:38]} Qxe7 {[%emt 0:00:06]} 35. Bd5+ {[%emt 0:01:02]} Be6 {[%emt 0:00:51]} 36. Re1 {[%emt 0:00:28]} 1-0

[Event "38th Barczay Memorial 2019"]
[Site "Zalakaros"]
[Date "2019.05.23"]
[Round "1.4"]
[White "Varga, Zoltan"]
[Black "Pasti, Anna"]
[Result "1-0"]
[ECO "A28"]
[WhiteElo "2457"]
[BlackElo "1977"]
[Annotator "RC"]
[PlyCount "57"]
[EventDate "2019.05.23"]
[EventType "swiss"]
[EventCountry "HUN"]
[SourceTitle "playchess.com"]
[Source "ChessBase"]
[SourceQuality "1"]
[TimeControl "40/5400+30:1800+30"]

1. c4 {[%emt 0:00:02]} e5 {[%emt 0:00:08]} 2. Nf3 {[%emt 0:00:04]} Nc6 {[%emt 0:00:15]} 3. Nc3 {[%emt 0:00:04]} Nf6 {[%emt 0:00:10]} 4. d4 {[%emt 0:00:05]} exd4 {[%emt 0:00:29]} 5. Nxd4 {[%emt 0:00:03]} d5 {[%emt 0:00:36]} 6. Nxc6 {[%emt 0:01:35]} bxc6 {[%emt 0:00:24]} 7. g3 {[%emt 0:00:01]} d4 {[%emt 0:12:24]} 8. Na4 {[%emt 0:02:30]} Ne4 {[%emt 0:02:41]} 9. a3 {[%emt 0:00:39]} Qf6 {[%emt 0:01:42]} 10. f4 {[%emt 0:07:05]} a5 {[%emt 0:17:54]} 11. Bg2 {[%emt 0:03:32]} Nc5 {[%emt 0:03:55]} 12. e4 {[%emt 0:07:59]} dxe3 {[%emt 0:06:43]} 13. Bxe3 {[%emt 0:01:08]} Qe6 {[%emt 0:04:10]} 14. Kf2 {[%emt 0:00:44]} Ne4+ {[%emt 0:06:05]} 15. Kg1 {[%emt 0:19:25]} Nc3 {[%emt 0:10:35]} 16. Qf3 {[%emt 0:01:04]} Nxa4 {[%emt 0:01:19]} 17. Qxc6+ {[%emt 0:01:49]} Kd8 {[%emt 0:03:00]} 18. Qxe6 {[%emt 0:01:36]} Bxe6 {[%emt 0:00:14]} 19. Bxa8 {[%emt 0:00:40]} Nxb2 {[%emt 0:00:44]} 20. c5 {[%emt 0:00:21]} Kc8 {[%emt 0:06:55]} 21. Kg2 {[%emt 0:00:40]} Nd3 {[%emt 0:02:05]} 22. Rab1 {[%emt 0:01:39]} Nxc5 {[%emt 0:01:32]} 23. Rhd1 {[%emt 0:02:47]} Nd7 {[%emt 0:06:01]} 24. Bb7+ {[%emt 0:04:35]} Kd8 {[%emt 0:00:08]} 25. Be4 {[%emt 0:01:47]} Bd6 {[%emt 0:00:38]} 26. Bd5 {[%emt 0:03:31]} Ke7 {[%emt 0:01:02]} 27. Bxe6 {[%emt 0:00:16]} Kxe6 {[%emt 0:00:13]} 28. Re1 {[%emt 0:00:48]} Kf6 {[%emt 0:00:20]} 29. Rb5 {[%emt 0:00:28]} 1-0

[Event "38th Barczay Memorial 2019"]
[Site "Zalakaros"]
[Date "2019.05.23"]
[Round "1.7"]
[White "Balogh, Marton"]
[Black "Czebe, Attila"]
[Result "0-1"]
[ECO "B00"]
[WhiteElo "1963"]
[BlackElo "2427"]
[Annotator "RC"]
[PlyCount "90"]
[EventDate "2019.05.23"]
[EventType "swiss"]
[EventCountry "HUN"]
[SourceTitle "playchess.com"]
[Source "ChessBase"]
[SourceQuality "1"]
[TimeControl "40/5400+30:1800+30"]

1. e4 {[%emt 0:00:08]} d6 {[%emt 0:00:13]} 2. d4 {[%emt 0:00:23]} g6 {[%emt 0:00:03]} 3. Nc3 {[%emt 0:00:23]} a6 {[%emt 0:00:04]} 4. f4 {[%emt 0:00:57]} b5 {[%emt 0:00:04]} 5. Nf3 {[%emt 0:02:19]} Bb7 {[%emt 0:00:04]} 6. Bd3 {[%emt 0:01:29]} c5 {[%emt 0:03:10]} 7. dxc5 {[%emt 0:17:44]} dxc5 {[%emt 0:00:22]} 8. O-O {[%emt 0:01:04]} c4 {[%emt 0:08:00]} 9. Be2 {[%emt 0:03:19]} Nd7 {[%emt 0:00:22]} 10. Be3 {[%emt 0:01:22]} Bg7 {[%emt 0:00:39]} 11. Bd4 {[%emt 0:03:45]} Bxd4+ {[%emt 0:04:43]} 12. Qxd4 {[%emt 0:00:31]} Qb6 {[%emt 0:00:26]} 13. Rad1 {[%emt 0:03:05]} Ngf6 {[%emt 0:03:31]} 14. e5 {[%emt 0:05:32]} Ng4 {[%emt 0:11:42]} 15. Qxb6 {[%emt 0:04:58]} Nxb6 {[%emt 0:02:12]} 16. Rd4 {[%emt 0:02:47]} Ne3 {[%emt 0:01:08]} 17. Rc1 {[%emt 0:00:53]} O-O {[%emt 0:04:13]} 18. Kf2 {[%emt 0:04:08]} Nf5 {[%emt 0:02:33]} 19. Rd2 {[%emt 0:00:51]} b4 {[%emt 0:02:54]} 20. Nd1 {[%emt 0:13:50]} Nd5 {[%emt 0:03:46]} 21. Bxc4 {[%emt 0:03:10]} Nxf4 {[%emt 0:01:14]} 22. Ne3 {[%emt 0:01:15]} e6 {[%emt 0:01:03]} 23. Nxf5 {[%emt 0:02:21]} gxf5 {[%emt 0:00:06]} 24. Rd4 {[%emt 0:02:07]} Ng6 {[%emt 0:00:16]} 25. Re1 {[%emt 0:02:10]} Rfd8 {[%emt 0:00:17]} 26. Rd6 {[%emt 0:03:52]} Kg7 {[%emt 0:04:16]} 27. Red1 {[%emt 0:02:31]} Rdc8 {[%emt 0:00:32]} 28. Bb3 {[%emt 0:09:48]} Bxf3 {[%emt 0:02:39]} 29. gxf3 {[%emt 0:00:01]} a5 {[%emt 0:00:54]} 30. Rd7 {[%emt 0:05:51]} Nxe5 {[%emt 0:00:23]} 31. Rb7 {[%emt 0:00:21]} Kf6 {[%emt 0:01:55]} 32. f4 {[%emt 0:00:53]} Ng4+ {[%emt 0:00:06]} 33. Ke2 {[%emt 0:01:06]} a4 {[%emt 0:01:13]} 34. Rdd7 {[%emt 0:00:06]} Nh6 {[%emt 0:00:16]} 35. Bxe6 {[%emt 0:01:03]} Re8 {[%emt 0:00:36]} 36. Rxb4 {[%emt 0:00:31]} Rxe6+ {[%emt 0:00:21]} 37. Kd3 {[%emt 0:00:54]} Ng4 {[%emt 0:00:23]} 38. Rbb7 {[%emt 0:00:34]} Kg6 {[%emt 0:01:08]} 39. Rxf7 {[%emt 0:00:44]} Nf6 {[%emt 0:00:06]} 40. Rg7+ {[%emt 0:00:00]} Kh6 {[%emt 0:00:00]} 41. c4 {[%emt 0:03:39]} a3 {[%emt 0:04:28]} 42. b4 {[%emt 0:01:07]} Rd8+ {[%emt 0:00:33]} 43. Kc2 {[%emt 0:02:04]} Rd4 {[%emt 0:00:45]} 44. Kc3 {[%emt 0:04:06]} Rxf4 {[%emt 0:01:35]} 45. Rge7 {[%emt 0:00:39]} Rc6 {[%emt 0:01:36]} 0-1

[Event "38th Barczay Memorial 2019"]
[Site "Zalakaros"]
[Date "2019.05.23"]
[Round "1.8"]
[White "Gschnitzer, Adrian"]
[Black "Reitinger, Petr"]
[Result "1-0"]
[ECO "B03"]
[WhiteElo "2419"]
[BlackElo "1958"]
[Annotator "NA RC"]
[PlyCount "53"]
[EventDate "2019.05.23"]
[EventType "swiss"]
[EventCountry "HUN"]
[SourceTitle "playchess.com"]
[Source "ChessBase"]
[SourceQuality "1"]
[TimeControl "40/5400+30:1800+30"]

1. e4 {[%emt 0:00:03]} Nf6 {[%emt 0:00:08]} 2. e5 {[%emt 0:00:08]} Nd5 {[%emt 0:00:06]} 3. d4 {[%emt 0:00:09]} d6 {[%emt 0:00:07]} 4. c4 {[%emt 0:00:06]} Nb6 {[%emt 0:00:06]} 5. exd6 {[%emt 0:00:10]} cxd6 {[%emt 0:00:06]} 6. Nc3 {[%emt 0:00:16]} g6 {[%emt 0:00:05]} 7. Be3 {[%emt 0:00:16]} Bg7 {[%emt 0:00:05]} 8. Rc1 {[%emt 0:00:16]} O-O {[%emt 0:00:19]} 9. b3 {[%emt 0:00:27]} Nc6 {[%emt 0:00:30]} 10. d5 {[%emt 0:01:42]} Ne5 {[%emt 0:01:51]} 11. Be2 $14 {[%emt 0:04:06]} f5 {[%emt 0:03:51]} 12. f4 {[%emt 0:00:11]} Ng4 {[%emt 0:00:43]} 13. Bxg4 {[%emt 0:00:10]} fxg4 {[%emt 0:00:08]} 14. Nge2 {[%emt 0:00:59]} Nd7 {[%emt 0:11:14]} 15. O-O {[%emt 0:02:36]} Nf6 {[%emt 0:00:15]} 16. Nd4 {[%emt 0:03:15]} g3 {[%emt 0:04:21]} 17. h3 {[%emt 0:01:31]} Ng4 {[%emt 0:18:28]} 18. hxg4 {[%emt 0:01:29]} Bxd4 {[%emt 0:01:11]} 19. Bxd4 {[%emt 0:02:36]} e5 {[%emt 0:00:30]} 20. fxe5 {[%emt 0:02:50]} Rxf1+ {[%emt 0:02:06]} 21. Qxf1 {[%emt 0:01:32]} Qh4 {[%emt 0:00:39]} 22. Qf4 {[%emt 0:01:19]} Bf5 {[%emt 0:09:04]} 23. e6 {[%emt 0:07:13]} Rf8 {[%emt 0:28:04]} 24. e7 {[%emt 0:00:35]} Qh2+ {[%emt 0:09:37]} 25. Kf1 {[%emt 0:00:03]} Qh1+ {[%emt 0:02:04]} 26. Ke2 {[%emt 0:02:10]} Bxg4+ {[%emt 0:02:41]} 27. Kd3 {[%emt 0:00:30]} 1-0

[Event "38th Barczay Memorial 2019"]
[Site "Zalakaros"]
[Date "2019.05.23"]
[Round "1.10"]
[White "Persanyi, Barnabas"]
[Black "Szasz, Ferenc"]
[Result "1-0"]
[ECO "A04"]
[WhiteElo "2404"]
[BlackElo "1950"]
[Annotator "RC"]
[PlyCount "67"]
[EventDate "2019.05.23"]
[EventType "swiss"]
[EventCountry "HUN"]
[SourceTitle "playchess.com"]
[Source "ChessBase"]
[SourceQuality "1"]
[TimeControl "40/5400+30:1800+30"]

1. Nf3 {[%emt 0:00:23]} c6 {[%emt 0:00:14]} 2. g3 {[%emt 0:00:59]} d5 {[%emt 0:00:12]} 3. Bg2 {[%emt 0:00:09]} Bf5 {[%emt 0:00:35]} 4. O-O {[%emt 0:01:00]} Nf6 {[%emt 0:00:18]} 5. d3 {[%emt 0:01:24]} e6 {[%emt 0:00:29]} 6. Nh4 {[%emt 0:01:55]} Be7 {[%emt 0:00:19]} 7. Nxf5 {[%emt 0:01:26]} exf5 {[%emt 0:00:16]} 8. Nd2 {[%emt 0:03:40]} h5 {[%emt 0:03:33]} 9. Nf3 {[%emt 0:03:43]} Na6 {[%emt 0:00:36]} 10. c4 {[%emt 0:04:39]} dxc4 {[%emt 0:02:30]} 11. dxc4 {[%emt 0:00:17]} Qxd1 {[%emt 0:00:21]} 12. Rxd1 {[%emt 0:00:06]} O-O {[%emt 0:01:01]} 13. Bg5 {[%emt 0:06:09]} Rad8 {[%emt 0:00:17]} 14. Nd4 {[%emt 0:17:24]} g6 {[%emt 0:00:18]} 15. e4 {[%emt 0:06:46]} fxe4 {[%emt 0:00:28]} 16. Bxe4 {[%emt 0:00:17]} Nc5 {[%emt 0:00:13]} 17. Bf3 {[%emt 0:02:04]} Kg7 {[%emt 0:00:21]} 18. h4 {[%emt 0:02:57]} Ng8 {[%emt 0:08:17]} 19. Be3 {[%emt 0:01:37]} a6 {[%emt 0:03:15]} 20. Bxh5 {[%emt 0:01:20]} Na4 {[%emt 0:07:30]} 21. Be2 {[%emt 0:07:35]} Bf6 {[%emt 0:01:38]} 22. Rab1 {[%emt 0:04:14]} c5 {[%emt 0:03:40]} 23. Nf3 {[%emt 0:03:30]} Nxb2 {[%emt 0:05:58]} 24. Rxd8 {[%emt 0:02:33]} Rxd8 {[%emt 0:00:23]} 25. Bxc5 {[%emt 0:02:25]} Rc8 {[%emt 0:00:20]} 26. Bd4 {[%emt 0:01:03]} Nxc4 {[%emt 0:00:34]} 27. Rxb7 {[%emt 0:00:43]} a5 {[%emt 0:08:13]} 28. Bxc4 {[%emt 0:02:34]} Rxc4 {[%emt 0:00:04]} 29. Ng5 {[%emt 0:00:51]} Ne7 {[%emt 0:02:43]} 30. Ne6+ {[%emt 0:00:36]} Kg8 {[%emt 0:09:35]} 31. Bxf6 {[%emt 0:00:25]} fxe6 {[%emt 0:03:33]} 32. Rxe7 {[%emt 0:00:08]} Ra4 {[%emt 0:00:06]} 33. a3 {[%emt 0:00:56]} Rxa3 {[%emt 0:00:17]} 34. Rg7+ {[%emt 0:00:10]} 1-0

[Event "38th Barczay Memorial 2019"]
[Site "Zalakaros"]
[Date "2019.05.24"]
[Round "2.2"]
[White "Sonnberger, Thomas"]
[Black "Kantor, Gergely"]
[Result "0-1"]
[ECO "A06"]
[WhiteElo "2208"]
[BlackElo "2516"]
[Annotator "RC"]
[PlyCount "81"]
[EventDate "2019.05.23"]
[EventType "swiss"]
[EventCountry "HUN"]
[SourceTitle "playchess.com"]
[Source "ChessBase"]
[SourceQuality "1"]
[TimeControl "40/5400+30:1800+30"]

1. Nf3 {[%emt 0:06:52]} d5 {[%emt 0:01:51]} 2. g3 {[%emt 0:00:07]} c6 {[%emt 0:00:21]} 3. Bg2 {[%emt 0:00:12]} Bg4 {[%emt 0:00:04]} 4. d4 {[%emt 0:01:56]} e6 {[%emt 0:00:29]} 5. O-O {[%emt 0:00:33]} Nf6 {[%emt 0:01:45]} 6. c4 {[%emt 0:01:45]} Nbd7 {[%emt 0:00:43]} 7. Nbd2 {[%emt 0:04:35]} Be7 {[%emt 0:04:26]} 8. b3 {[%emt 0:02:57]} O-O {[%emt 0:01:48]} 9. Bb2 {[%emt 0:00:28]} Bh5 {[%emt 0:02:29]} 10. Ne5 {[%emt 0:01:46]} Nxe5 {[%emt 0:01:14]} 11. dxe5 {[%emt 0:00:10]} Nd7 {[%emt 0:00:53]} 12. Rc1 {[%emt 0:03:36]} a5 {[%emt 0:07:24]} 13. h3 {[%emt 0:07:52]} a4 {[%emt 0:02:59]} 14. g4 {[%emt 0:01:46]} Bg6 {[%emt 0:00:06]} 15. cxd5 {[%emt 0:01:23]} cxd5 {[%emt 0:02:17]} 16. e4 {[%emt 0:00:43]} Nc5 {[%emt 0:05:47]} 17. exd5 {[%emt 0:10:17]} Nd3 {[%emt 0:14:13]} 18. d6 {[%emt 0:06:13]} Bxd6 {[%emt 0:03:22]} 19. Ne4 {[%emt 0:06:36]} Bb8 {[%emt 0:06:23]} 20. Ba3 {[%emt 0:09:37]} Nxc1 {[%emt 0:05:48]} 21. Bxf8 {[%emt 0:01:36]} Qxf8 {[%emt 0:02:22]} 22. Qxc1 {[%emt 0:00:19]} axb3 {[%emt 0:00:53]} 23. axb3 {[%emt 0:00:41]} Bxe5 {[%emt 0:00:25]} 24. Qc4 {[%emt 0:01:49]} Rd8 {[%emt 0:05:45]} 25. Qb5 {[%emt 0:01:48]} Bxe4 {[%emt 0:08:12]} 26. Bxe4 {[%emt 0:02:27]} Bb8 {[%emt 0:00:16]} 27. Qb6 {[%emt 0:03:33]} Qe7 {[%emt 0:02:18]} 28. Rc1 {[%emt 0:04:33]} Bf4 {[%emt 0:14:52]} 29. Rc2 {[%emt 0:02:50]} h5 {[%emt 0:02:17]} 30. Qxb7 {[%emt 0:03:07]} Qg5 {[%emt 0:01:04]} 31. Rc8 {[%emt 0:04:35]} hxg4 {[%emt 0:01:39]} 32. h4 {[%emt 0:00:19]} Qa5 {[%emt 0:01:04]} 33. Kg2 {[%emt 0:05:31]} Qd2 {[%emt 0:00:22]} 34. b4 {[%emt 0:02:35]} g6 {[%emt 0:00:30]} 35. Rxd8+ {[%emt 0:01:21]} Qxd8 {[%emt 0:00:05]} 36. Qc6 {[%emt 0:00:47]} Qxh4 {[%emt 0:00:48]} 37. Kf1 {[%emt 0:00:28]} g3 {[%emt 0:00:35]} 38. fxg3 {[%emt 0:00:35]} Qxg3 {[%emt 0:00:21]} 39. Bf3 {[%emt 0:00:26]} g5 {[%emt 0:00:49]} 40. Qc8+ {[%emt 0:00:00]} Kg7 {[%emt 0:00:00]} 41. Qc6 {[%emt 0:02:01]} 0-1

[Event "38th Barczay Memorial 2019"]
[Site "Zalakaros"]
[Date "2019.05.24"]
[Round "2.3"]
[White "Bokros, Albert"]
[Black "Kantorik, Marian"]
[Result "1-0"]
[ECO "C41"]
[WhiteElo "2461"]
[BlackElo "2202"]
[Annotator "RC"]
[PlyCount "91"]
[EventDate "2019.05.23"]
[EventType "swiss"]
[EventCountry "HUN"]
[SourceTitle "playchess.com"]
[Source "ChessBase"]
[SourceQuality "1"]
[TimeControl "40/5400+30:1800+30"]

1. e4 {[%emt 0:00:03]} d6 {[%emt 0:01:30]} 2. d4 {[%emt 0:00:09]} Nf6 {[%emt 0:00:06]} 3. Nc3 {[%emt 0:00:07]} e5 {[%emt 0:00:06]} 4. Nf3 {[%emt 0:00:13]} Nbd7 {[%emt 0:00:12]} 5. Bc4 {[%emt 0:00:08]} Be7 {[%emt 0:00:06]} 6. O-O {[%emt 0:00:20]} c6 {[%emt 0:00:04]} 7. a4 {[%emt 0:00:10]} Qc7 {[%emt 0:00:06]} 8. Re1 {[%emt 0:01:20]} h6 {[%emt 0:00:07]} 9. a5 {[%emt 0:10:13]} g5 {[%emt 0:01:37]} 10. d5 {[%emt 0:04:59]} Nf8 {[%emt 0:02:33]} 11. Nd2 {[%emt 0:02:58]} Ng6 {[%emt 0:00:34]} 12. Nf1 {[%emt 0:01:19]} Nf4 {[%emt 0:13:31]} 13. Ne3 {[%emt 0:07:30]} cxd5 {[%emt 0:19:29]} 14. Bxd5 {[%emt 0:05:36]} Be6 {[%emt 0:04:05]} 15. Bb3 {[%emt 0:05:53]} O-O-O {[%emt 0:10:34]} 16. g3 {[%emt 0:07:03]} Rhg8 {[%emt 0:07:13]} 17. a6 {[%emt 0:10:41]} b6 {[%emt 0:03:35]} 18. Kh1 {[%emt 0:03:14]} Nh3 {[%emt 0:01:13]} 19. Rf1 {[%emt 0:05:17]} Kb8 {[%emt 0:03:08]} 20. Ncd5 {[%emt 0:05:18]} Nxd5 {[%emt 0:11:18]} 21. Nxd5 {[%emt 0:00:58]} Bxd5 {[%emt 0:00:19]} 22. Qxd5 {[%emt 0:01:26]} Rc8 {[%emt 0:05:22]} 23. Be3 {[%emt 0:03:02]} Rg7 {[%emt 0:00:58]} 24. Ra4 {[%emt 0:03:53]} Qc6 {[%emt 0:00:57]} 25. Qd3 {[%emt 0:01:40]} Qd7 {[%emt 0:01:10]} 26. Bxb6 {[%emt 0:02:34]} d5 {[%emt 0:03:00]} 27. Be3 {[%emt 0:06:36]} d4 {[%emt 0:02:28]} 28. Ra5 {[%emt 0:02:20]} Bc5 {[%emt 0:02:07]} 29. Bd2 {[%emt 0:01:29]} f6 {[%emt 0:01:13]} 30. Kg2 {[%emt 0:05:03]} Nf4+ {[%emt 0:04:25]} 31. Bxf4 {[%emt 0:02:01]} gxf4 {[%emt 0:00:07]} 32. Rb5+ {[%emt 0:01:21]} Bb6 {[%emt 0:00:44]} 33. Ra1 {[%emt 0:00:15]} Rc7 {[%emt 0:01:46]} 34. Rd5 {[%emt 0:00:45]} Qe7 {[%emt 0:00:36]} 35. c4 {[%emt 0:00:44]} h5 {[%emt 0:00:15]} 36. Bd1 {[%emt 0:00:20]} h4 {[%emt 0:00:15]} 37. g4 {[%emt 0:00:18]} Rc5 {[%emt 0:00:55]} 38. Bf3 {[%emt 0:00:46]} Rxd5 {[%emt 0:00:19]} 39. exd5 {[%emt 0:00:15]} Qd7 {[%emt 0:00:30]} 40. Kh1 {[%emt 0:00:00]} h3 41. b4 e4 {[%emt 0:04:25]} 42. Bxe4 {[%emt 0:07:03]} Qxg4 {[%emt 0:05:58]} 43. c5 {[%emt 0:01:29]} Bd8 {[%emt 0:00:03]} 44. d6 {[%emt 0:02:03]} f3 {[%emt 0:03:16]} 45. Bxf3 {[%emt 0:02:17]} Qf4 {[%emt 0:02:39]} 46. Qb5+ {[%emt 0:01:04]} 1-0

[Event "38th Barczay Memorial 2019"]
[Site "Zalakaros"]
[Date "2019.05.24"]
[Round "2.4"]
[White "Hrbolka, Ladislav Jr."]
[Black "Varga, Zoltan"]
[Result "0-1"]
[ECO "B04"]
[WhiteElo "2203"]
[BlackElo "2457"]
[Annotator "RC"]
[PlyCount "84"]
[EventDate "2019.05.23"]
[EventType "swiss"]
[EventCountry "HUN"]
[SourceTitle "playchess.com"]
[Source "ChessBase"]
[SourceQuality "1"]
[TimeControl "40/5400+30:1800+30"]

1. e4 {[%emt 0:00:02]} Nf6 {[%emt 0:19:16]} 2. e5 {[%emt 0:00:23]} Nd5 {[%emt 0:00:08]} 3. d4 {[%emt 0:00:27]} d6 {[%emt 0:00:05]} 4. Nf3 {[%emt 0:00:52]} Nb6 {[%emt 0:00:32]} 5. Be2 {[%emt 0:08:47]} g6 {[%emt 0:00:11]} 6. O-O {[%emt 0:00:50]} Bg7 {[%emt 0:00:04]} 7. Nc3 {[%emt 0:07:13]} dxe5 {[%emt 0:04:26]} 8. Nxe5 {[%emt 0:01:11]} N8d7 {[%emt 0:00:29]} 9. Bf4 {[%emt 0:03:13]} Nxe5 {[%emt 0:02:09]} 10. Bxe5 {[%emt 0:01:22]} Bxe5 {[%emt 0:00:17]} 11. dxe5 {[%emt 0:00:08]} Bf5 {[%emt 0:00:06]} 12. Nb5 {[%emt 0:08:06]} c6 {[%emt 0:06:29]} 13. Nd4 {[%emt 0:00:32]} Qd5 {[%emt 0:00:08]} 14. g4 {[%emt 0:16:11]} O-O-O {[%emt 0:10:44]} 15. gxf5 {[%emt 0:22:38]} Qxd4 {[%emt 0:02:12]} 16. Qxd4 {[%emt 0:00:09]} Rxd4 {[%emt 0:00:05]} 17. fxg6 {[%emt 0:06:56]} hxg6 {[%emt 0:00:34]} 18. Rad1 {[%emt 0:00:27]} Rdh4 {[%emt 0:06:51]} 19. h3 {[%emt 0:00:10]} e6 {[%emt 0:00:05]} 20. Bg4 {[%emt 0:01:15]} Nc4 {[%emt 0:00:05]} 21. Rfe1 {[%emt 0:01:56]} Nxb2 {[%emt 0:00:20]} 22. Rd4 {[%emt 0:00:36]} b5 {[%emt 0:00:05]} 23. Ree4 {[%emt 0:04:01]} g5 {[%emt 0:17:30]} 24. f4 {[%emt 0:02:23]} c5 {[%emt 0:02:51]} 25. Rd2 {[%emt 0:01:52]} Nc4 {[%emt 0:00:53]} 26. Rf2 {[%emt 0:00:19]} gxf4 {[%emt 0:00:36]} 27. Rfxf4 {[%emt 0:00:09]} R4h7 {[%emt 0:00:06]} 28. a4 {[%emt 0:02:31]} a6 {[%emt 0:01:09]} 29. axb5 {[%emt 0:00:04]} axb5 {[%emt 0:00:04]} 30. Be2 {[%emt 0:03:45]} Nd2 {[%emt 0:03:37]} 31. Re3 {[%emt 0:00:12]} c4 {[%emt 0:00:01]} 32. Bg4 {[%emt 0:02:46]} Rd8 {[%emt 0:00:16]} 33. Kg2 {[%emt 0:01:27]} Kc7 {[%emt 0:02:04]} 34. Kg3 {[%emt 0:00:42]} Kb6 {[%emt 0:00:24]} 35. h4 {[%emt 0:01:04]} b4 {[%emt 0:01:48]} 36. h5 {[%emt 0:01:22]} Kc5 {[%emt 0:00:03]} 37. Be2 {[%emt 0:01:13]} Rg7+ {[%emt 0:03:55]} 38. Rg4 {[%emt 0:00:40]} Rxg4+ {[%emt 0:00:53]} 39. Kxg4 {[%emt 0:00:08]} b3 {[%emt 0:00:18]} 40. cxb3 {[%emt 0:00:00]} cxb3 {[%emt 0:00:00]} 41. Rc3+ {[%emt 0:05:50]} Kb4 {[%emt 0:01:44]} 42. Rd3 {[%emt 0:00:09]} Rg8+ {[%emt 0:01:51]} 0-1

[Event "38th Barczay Memorial 2019"]
[Site "Zalakaros"]
[Date "2019.05.24"]
[Round "2.7"]
[White "Czebe, Attila"]
[Black "Dobai, Szabolcs"]
[Result "1-0"]
[ECO "B10"]
[WhiteElo "2427"]
[BlackElo "2192"]
[Annotator "RC"]
[PlyCount "45"]
[EventDate "2019.05.23"]
[EventType "swiss"]
[EventCountry "HUN"]
[SourceTitle "playchess.com"]
[Source "ChessBase"]
[SourceQuality "1"]
[TimeControl "40/5400+30:1800+30"]

1. e4 {[%emt 0:01:58]} c6 {[%emt 0:00:05]} 2. Nc3 {[%emt 0:01:45]} d5 {[%emt 0:00:05]} 3. Nf3 {[%emt 0:00:35]} Nf6 {[%emt 0:00:07]} 4. e5 {[%emt 0:00:27]} Ne4 {[%emt 0:00:05]} 5. Qe2 {[%emt 0:01:30]} Nxc3 {[%emt 0:01:57]} 6. dxc3 {[%emt 0:00:05]} Bg4 {[%emt 0:02:18]} 7. Bg5 {[%emt 0:05:40]} Qa5 {[%emt 0:11:59]} 8. e6 {[%emt 0:04:38]} Bxe6 {[%emt 0:04:36]} 9. Nd4 {[%emt 0:00:06]} Bc8 {[%emt 0:01:36]} 10. Nb3 {[%emt 0:01:16]} Qc7 {[%emt 0:06:53]} 11. O-O-O {[%emt 0:02:04]} f6 {[%emt 0:02:54]} 12. Be3 {[%emt 0:00:29]} e5 {[%emt 0:01:40]} 13. f4 {[%emt 0:03:26]} Be6 {[%emt 0:04:23]} 14. fxe5 {[%emt 0:00:49]} fxe5 {[%emt 0:04:00]} 15. Qh5+ {[%emt 0:00:24]} g6 {[%emt 0:02:43]} 16. Qh4 {[%emt 0:01:14]} Nd7 {[%emt 0:02:05]} 17. Bd3 {[%emt 0:03:56]} Bg7 {[%emt 0:03:32]} 18. Rhf1 {[%emt 0:00:21]} b6 {[%emt 0:09:40]} 19. c4 {[%emt 0:05:20]} d4 {[%emt 0:05:34]} 20. Bg5 {[%emt 0:00:43]} Bf7 {[%emt 0:01:10]} 21. Rxf7 {[%emt 0:06:54]} Kxf7 {[%emt 0:01:39]} 22. Rf1+ {[%emt 0:00:05]} Ke8 {[%emt 0:05:24]} 23. Qxh7 1-0